[Event "45th FIDE Womens Olympiad 2024"]
[Site "Budapest"]
[Date "2024.09.13"]
[Round "3.24"]
[White "Doluhanova, Evgeniya"]
[Black "Levitan, Ronit"]
[Result "1/2-1/2"]
[ECO "C45"]
[WhiteElo "2304"]
[BlackElo "2137"]
[Annotator "RC"]
[PlyCount "128"]
[EventDate "2024.09.05"]
[EventType "team-tourn"]
[EventCountry "HUN"]
[SourceTitle "playchess.com"]
[Source "ChessBase"]
[SourceQuality "1"]
[WhiteTeam "Ukraine"]
[BlackTeam "Israel"]
[WhiteTeamCountry "UKR"]
[BlackTeamCountry "ISR"]
[TimeControl "40/5400+30:1800+30"]

1. e4 {[%emt 0:00:32]} e5 {[%emt 0:00:47]} 2. Nf3 {[%emt 0:01:00]} Nc6 {[%emt 0:00:12]} 3. d4 {[%emt 0:00:33]} exd4 {[%emt 0:01:11]} 4. Nxd4 {[%emt 0:00:21]} Nf6 {[%emt 0:00:16]} 5. Nxc6 {[%emt 0:00:14]} bxc6 {[%emt 0:00:08]} 6. Bd3 {[%emt 0:00:09]} d5 {[%emt 0:01:52]} 7. exd5 {[%emt 0:00:50]} cxd5 {[%emt 0:00:06]} 8. O-O {[%emt 0:00:29]} Be7 {[%emt 0:00:11]} 9. h3 {[%emt 0:03:23]} O-O {[%emt 0:00:35]} 10. Nc3 {[%emt 0:06:00]} c6 {[%emt 0:04:06]} 11. Re1 {[%emt 0:05:07]} Bd6 {[%emt 0:06:15]} 12. Qf3 {[%emt 0:03:51]} Rb8 {[%emt 0:01:14]} 13. b3 {[%emt 0:10:07]} Bb4 {[%emt 0:29:26]} 14. Bd2 {[%emt 0:05:05]} d4 {[%emt 0:01:36]} 15. Ne4 {[%emt 0:07:14]} Bxd2 {[%emt 0:06:08]} 16. Nxd2 {[%emt 0:00:08]} c5 {[%emt 0:01:31]} 17. Re5 {[%emt 0:06:05]} Qc7 {[%emt 0:08:27]} 18. Rae1 {[%emt 0:05:39]} Be6 {[%emt 0:03:20]} 19. Qg3 {[%emt 0:13:04]} h6 {[%emt 0:01:25]} 20. Bc4 {[%emt 0:20:16]} Bxc4 {[%emt 0:04:15]} 21. Nxc4 {[%emt 0:00:06]} Nd7 {[%emt 0:01:53]} 22. Rd5 {[%emt 0:01:47]} Qxg3 {[%emt 0:19:55]} 23. fxg3 {[%emt 0:00:08]} Nb6 {[%emt 0:00:32]} 24. Rxc5 {[%emt 0:00:48]} Nxc4 {[%emt 0:00:04]} 25. Rxc4 {[%emt 0:00:08]} Rfc8 {[%emt 0:00:13]} 26. Rxc8+ {[%emt 0:01:01]} Rxc8 {[%emt 0:00:05]} 27. Re2 {[%emt 0:00:08]} Rc3 {[%emt 0:01:05]} 28. Rd2 {[%emt 0:02:59]} Kf8 {[%emt 0:01:21]} 29. Rxd4 {[%emt 0:05:27]} Rxc2 {[%emt 0:00:08]} 30. Ra4 {[%emt 0:00:03]} Rc7 {[%emt 0:00:08]} 31. Re4 {[%emt 0:00:58]} Rc2 {[%emt 0:06:33]} 32. a4 {[%emt 0:00:40]} a5 {[%emt 0:00:07]} 33. Re3 {[%emt 0:00:51]} f6 {[%emt 0:00:18]} 34. g4 {[%emt 0:00:17]} Kf7 {[%emt 0:00:43]} 35. Kh2 {[%emt 0:00:29]} g5 {[%emt 0:00:26]} 36. Kg3 {[%emt 0:01:01]} Rd2 {[%emt 0:01:22]} 37. Kf3 {[%emt 0:00:31]} Rc2 {[%emt 0:00:06]} 38. g3 {[%emt 0:00:40]} Rh2 {[%emt 0:00:47]} 39. Rc3 {[%emt 0:00:28]} Ke6 {[%emt 0:00:33]} 40. Rc6+ {[%emt 0:00:26]} Ke7 {[%emt 0:00:12]} 41. Rb6 {[%emt 0:30:31]} Rc2 {[%emt 0:30:43]} 42. h4 {[%emt 0:00:00]} Rc3+ {[%emt 0:00:00]} 43. Kg2 {[%emt 0:00:00]} Rc2+ {[%emt 0:00:00]} 44. Kh3 {[%emt 0:00:00]} Rb2 {[%emt 0:00:00]} 45. Rb7+ {[%emt 0:00:00]} Ke6 {[%emt 0:00:00]} 46. h5 {[%emt 0:00:00]} Rc2 {[%emt 0:00:00]} 47. Rb5 {[%emt 0:00:00]} Rb2 {[%emt 0:00:00]} 48. Rxa5 {[%emt 0:00:00]} Rxb3 {[%emt 0:00:06]} 49. Ra6+ {[%emt 0:00:00]} Kf7 {[%emt 0:00:00]} 50. a5 {[%emt 0:04:35]} Ra3 {[%emt 0:00:00]} 51. Ra8 {[%emt 0:01:05]} Ra2 {[%emt 0:00:00]} 52. Ra7+ {[%emt 0:00:04]} Kg8 {[%emt 0:00:00]} 53. a6 {[%emt 0:00:27]} Kh8 {[%emt 0:00:00]} 54. Re7 {[%emt 0:00:56]} Rxa6 {[%emt 0:00:00]} 55. Kg2 {[%emt 0:00:04]} Kg8 {[%emt 0:00:00]} 56. Kf3 {[%emt 0:00:21]} Ra4 {[%emt 0:00:00]} 57. Rd7 {[%emt 0:00:25]} Rb4 {[%emt 0:00:00]} 58. Ra7 {[%emt 0:00:36]} Rc4 {[%emt 0:00:00]} 59. Ra6 {[%emt 0:00:53]} Kf7 {[%emt 0:00:00]} 60. Ra7+ {[%emt 0:00:07]} Kg8 {[%emt 0:00:00]} 61. Re7 {[%emt 0:00:25]} Ra4 {[%emt 0:00:00]} 62. Rd7 {[%emt 0:00:56]} Rb4 {[%emt 0:00:00]} 63. Re7 {[%emt 0:00:07]} Ra4 {[%emt 0:00:00]} 64. Rd7 {[%emt 0:01:01]} Rb4 {[%emt 0:00:05]} 1/2-1/2

[Event "45th FIDE Womens Olympiad 2024"]
[Site "Budapest"]
[Date "2024.09.13"]
[Round "3.24"]
[White "Hoareau, Rachelle"]
[Black "Aayat Asmi"]
[Result "0-1"]
[ECO "B08"]
[WhiteElo "1625"]
[BlackElo "1421"]
[Annotator "NA"]
[PlyCount "112"]
[EventDate "2024.09.05"]
[EventType "team-tourn"]
[EventCountry "HUN"]
[SourceTitle "playchess.com"]
[Source "ChessBase"]
[SourceQuality "1"]
[WhiteTeam "Seychelles"]
[BlackTeam "Pakistan"]
[WhiteTeamCountry "SEY"]
[BlackTeamCountry "PAK"]
[TimeControl "40/5400+30:1800+30"]

1. d4 Nf6 2. Nf3 g6 3. Nc3 Bg7 4. e4 d6 5. Bg5 h6 6. Bh4 O-O 7. Be2 Nbd7 8. d5 Nc5 9. Bxf6 Bxf6 10. O-O Bxc3 11. bxc3 Nxe4 12. Bd3 Nf6 13. c4 e5 14. Qd2 e4 15. Qxh6 Ng4 16. Qh3 exd3 17. cxd3 Kg7 18. Qg3 Qf6 19. h3 Ne5 20. Rad1 Nxf3+ 21. gxf3 Bf5 22. Kg2 Qc3 23. h4 Bxd3 24. Rh1 Rh8 25. Qg5 Be2 26. Rc1 Qxf3+ 27. Kg1 Rh5 28. Qg3 Qxg3+ 29. fxg3 Re8 30. Rb1 b6 31. Rb2 Bxc4 32. Rd2 Re1+ 33. Kg2 Rxh1 34. Kxh1 Rxd5 35. Rf2 Re5 36. Rf4 Bxa2 37. Kh2 Re2+ 38. Kg1 b5 39. Kf1 Bc4 40. Kg1 Re1+ 41. Kf2 Rf1+ 42. Kg2 Rxf4 43. gxf4 a5 44. Kg3 a4 45. Kg4 a3 46. h5 a2 47. Kg5 gxh5 48. f5 a1=Q 49. Kxh5 Qh1+ 50. Kg5 Qh6+ 51. Kg4 b4 52. Kf3 b3 53. Ke4 b2 54. Kd4 b1=Q 55. Kxc4 Qhc1+ 56. Kd5 Qd3# 0-1

[Event "45th FIDE Womens Olympiad 2024"]
[Site "Budapest"]
[Date "2024.09.13"]
[Round "3.25"]
[White "Mammadzada, Gunay"]
[Black "Francisco Guecamburu, Candela Be"]
[Result "1/2-1/2"]
[ECO "C79"]
[WhiteElo "2433"]
[BlackElo "2294"]
[Annotator "RC"]
[PlyCount "60"]
[EventDate "2024.09.05"]
[EventType "team-tourn"]
[EventCountry "HUN"]
[SourceTitle "playchess.com"]
[Source "ChessBase"]
[SourceQuality "1"]
[WhiteTeam "Azerbaijan"]
[BlackTeam "Argentina"]
[WhiteTeamCountry "AZE"]
[BlackTeamCountry "ARG"]
[TimeControl "40/5400+30:1800+30"]

1. e4 {[%emt 0:00:08]} e5 {[%emt 0:00:09]} 2. Nf3 {[%emt 0:00:04]} Nc6 {[%emt 0:00:09]} 3. Bb5 {[%emt 0:00:11]} a6 {[%emt 0:00:12]} 4. Ba4 {[%emt 0:00:02]} Nf6 {[%emt 0:00:10]} 5. O-O {[%emt 0:01:11]} d6 {[%emt 0:00:12]} 6. c3 {[%emt 0:05:02]} Bd7 {[%emt 0:00:20]} 7. d4 {[%emt 0:00:51]} exd4 {[%emt 0:00:16]} 8. cxd4 {[%emt 0:06:16]} Nxe4 {[%emt 0:00:09]} 9. d5 {[%emt 0:08:45]} Ne5 {[%emt 0:00:12]} 10. Re1 {[%emt 0:10:35]} Nf6 {[%emt 0:01:28]} 11. Nxe5 {[%emt 0:08:10]} dxe5 {[%emt 0:00:08]} 12. Rxe5+ {[%emt 0:01:13]} Be7 {[%emt 0:00:09]} 13. Bc2 {[%emt 0:02:31]} O-O {[%emt 0:02:38]} 14. h3 {[%emt 0:07:21]} Bd6 {[%emt 0:10:21]} 15. Re1 {[%emt 0:02:43]} Re8 {[%emt 0:05:25]} 16. Nc3 {[%emt 0:16:38]} Rxe1+ {[%emt 0:12:44]} 17. Qxe1 {[%emt 0:05:13]} Qe8 {[%emt 0:06:15]} 18. Qxe8+ {[%emt 0:00:37]} Rxe8 {[%emt 0:00:00]} 19. Be3 {[%emt 0:06:12]} Be5 {[%emt 0:05:55]} 20. Rd1 {[%emt 0:00:00]} b5 21. a3 {[%emt 0:08:14]} a5 {[%emt 0:04:14]} 22. Bd4 {[%emt 0:07:01]} b4 {[%emt 0:00:53]} 23. axb4 {[%emt 0:00:11]} axb4 {[%emt 0:06:08]} 24. Bxe5 {[%emt 0:00:00]} Rxe5 {[%emt 0:03:22]} 25. Na2 {[%emt 0:10:09]} Rxd5 {[%emt 0:01:46]} 26. Nxb4 {[%emt 0:11:36]} Rxd1+ {[%emt 0:19:55]} 27. Bxd1 {[%emt 0:00:00]} Bb5 {[%emt 0:01:24]} 28. Bf3 {[%emt 0:00:00]} Kf8 {[%emt 0:03:10]} 29. Nd5 {[%emt 0:00:00]} Nxd5 {[%emt 0:00:00]} 30. Bxd5 {[%emt 0:00:00]} Ke7 {[%emt 0:00:00]} 1/2-1/2

[Event "45th FIDE Womens Olympiad 2024"]
[Site "Budapest"]
[Date "2024.09.13"]
[Round "3.25"]
[White "Lima, Izidora Lourenco"]
[Black "Jacobs, Annelaine"]
[Result "1-0"]
[ECO "B34"]
[WhiteElo "1579"]
[BlackElo "1763"]
[Annotator "NA"]
[PlyCount "64"]
[EventDate "2024.09.05"]
[EventType "team-tourn"]
[EventCountry "HUN"]
[SourceTitle "playchess.com"]
[Source "ChessBase"]
[SourceQuality "1"]
[WhiteTeam "Sao Tome and Principe"]
[BlackTeam "Aruba"]
[WhiteTeamCountry "SAO"]
[BlackTeamCountry "ARN"]
[TimeControl "40/5400+30:1800+30"]

1. e4 c5 2. Nf3 g6 3. d4 cxd4 4. Nxd4 Nf6 5. Nc3 Nc6 6. Be3 Bg7 7. Be2 O-O 8. O-O d5 9. exd5 Nxd5 10. Nxd5 Qxd5 11. Bf3 Qc4 12. Nxc6 bxc6 13. c3 Bf5 14. Qb3 Qa6 15. Qb4 e5 16. Qc5 e4 17. Bd1 Qb5 18. Bb3 a6 19. Rfd1 Qxc5 20. Bxc5 Rfd8 21. Bb6 Rxd1+ 22. Rxd1 Rb8 23. Rd8+ Rxd8 24. Bxd8 Be5 25. Bb6 Kf8 26. Bc4 Bc8 27. a4 Ke8 28. h3 f5 29. Kf1 h6 30. Ke2 Ke7 31. Ke3 Ke8 32. Bd4 Bd6 1-0

[Event "45th FIDE Womens Olympiad 2024"]
[Site "Budapest"]
[Date "2024.09.13"]
[Round "3.26"]
[White "Campos, Maria Jose"]
[Black "Fataliyeva, Ulviyya"]
[Result "1-0"]
[ECO "E05"]
[WhiteElo "2252"]
[BlackElo "2378"]
[Annotator "RC"]
[PlyCount "117"]
[EventDate "2024.09.05"]
[EventType "team-tourn"]
[EventCountry "HUN"]
[SourceTitle "playchess.com"]
[Source "ChessBase"]
[SourceQuality "1"]
[WhiteTeam "Argentina"]
[BlackTeam "Azerbaijan"]
[WhiteTeamCountry "ARG"]
[BlackTeamCountry "AZE"]
[TimeControl "40/5400+30:1800+30"]

1. Nf3 {[%emt 0:00:11]} d5 {[%emt 0:00:04]} 2. c4 {[%emt 0:00:12]} e6 {[%emt 0:00:19]} 3. g3 {[%emt 0:02:32]} Nf6 {[%emt 0:00:04]} 4. Bg2 {[%emt 0:00:53]} Be7 {[%emt 0:00:05]} 5. O-O {[%emt 0:01:00]} O-O {[%emt 0:00:08]} 6. d4 {[%emt 0:00:41]} dxc4 {[%emt 0:00:11]} 7. Qc2 {[%emt 0:01:45]} a6 {[%emt 0:00:06]} 8. a4 {[%emt 0:01:02]} Bd7 {[%emt 0:00:09]} 9. Rd1 {[%emt 0:01:02]} Bc6 {[%emt 0:06:34]} 10. Bg5 {[%emt 0:02:25]} Nbd7 {[%emt 0:04:07]} 11. Nbd2 {[%emt 0:03:02]} h6 {[%emt 0:05:57]} 12. Bxf6 {[%emt 0:02:07]} Nxf6 {[%emt 0:00:24]} 13. Qxc4 {[%emt 0:04:23]} Rc8 {[%emt 0:02:40]} 14. Qc2 {[%emt 0:07:56]} Bb4 {[%emt 0:03:21]} 15. Nb3 {[%emt 0:13:52]} Be4 {[%emt 0:07:20]} 16. Qc4 {[%emt 0:04:36]} Qe7 {[%emt 0:01:42]} 17. Rac1 {[%emt 0:09:45]} b5 {[%emt 0:05:31]} 18. axb5 {[%emt 0:08:17]} axb5 {[%emt 0:02:11]} 19. Qxb5 {[%emt 0:00:46]} Rb8 {[%emt 0:00:48]} 20. Qa6 {[%emt 0:07:43]} Rb6 {[%emt 0:03:52]} 21. Qc4 {[%emt 0:01:59]} Bd5 {[%emt 0:00:29]} 22. Qd3 {[%emt 0:00:43]} Bxb3 {[%emt 0:01:34]} 23. Qxb3 {[%emt 0:00:08]} Bd2 {[%emt 0:00:14]} 24. Qxb6 {[%emt 0:02:37]} cxb6 {[%emt 0:01:17]} 25. Rxd2 {[%emt 0:00:12]} b5 {[%emt 0:22:59]} 26. Ne5 {[%emt 0:06:17]} Qb4 {[%emt 0:00:35]} 27. Rcc2 {[%emt 0:04:19]} Qa4 {[%emt 0:02:04]} 28. Bf3 {[%emt 0:03:49]} b4 {[%emt 0:03:04]} 29. Kg2 {[%emt 0:02:56]} Nd5 {[%emt 0:02:32]} 30. Rc5 {[%emt 0:02:06]} Qa1 {[%emt 0:02:37]} 31. Nd3 {[%emt 0:01:22]} b3 {[%emt 0:02:35]} 32. e4 {[%emt 0:02:15]} Nf6 {[%emt 0:00:44]} 33. Rc3 {[%emt 0:00:46]} Rb8 {[%emt 0:06:49]} 34. d5 {[%emt 0:01:31]} exd5 {[%emt 0:05:21]} 35. exd5 {[%emt 0:00:12]} g5 {[%emt 0:01:34]} 36. h3 {[%emt 0:00:31]} h5 {[%emt 0:00:11]} 37. d6 {[%emt 0:00:55]} g4 {[%emt 0:00:32]} 38. hxg4 {[%emt 0:00:05]} hxg4 {[%emt 0:00:04]} 39. Bc6 {[%emt 0:00:18]} Kg7 {[%emt 0:00:42]} 40. d7 {[%emt 0:00:40]} Rh8 {[%emt 0:01:34]} 41. Nc1 {[%emt 0:30:17]} Qa5 {[%emt 0:33:20]} 42. Nxb3 {[%emt 0:01:27]} Qh5 {[%emt 0:01:02]} 43. Kf1 {[%emt 0:00:00]} Rd8 {[%emt 0:00:00]} 44. Nc5 {[%emt 0:00:00]} Qf5 {[%emt 0:00:00]} 45. Rdd3 {[%emt 0:00:00]} Qh7 {[%emt 0:00:00]} 46. b4 {[%emt 0:00:00]} Qh3+ {[%emt 0:00:00]} 47. Kg1 {[%emt 0:00:00]} Nxd7 {[%emt 0:00:00]} 48. Rxd7 {[%emt 0:00:00]} Re8 {[%emt 0:00:00]} 49. Rd1 {[%emt 0:00:00]} Re2 {[%emt 0:00:00]} 50. Rc4 {[%emt 0:00:00]} Qh5 {[%emt 0:00:00]} 51. Nd3 {[%emt 0:00:00]} Qf5 {[%emt 0:00:00]} 52. Nf4 {[%emt 0:00:00]} Rb2 {[%emt 0:00:00]} 53. Rc5 {[%emt 0:00:00]} Qc8 {[%emt 0:00:00]} 54. Nh5+ {[%emt 0:00:00]} Kh8 {[%emt 0:00:00]} 55. Re1 {[%emt 0:00:14]} Qa6 {[%emt 0:00:00]} 56. Re8+ {[%emt 0:00:50]} Kh7 {[%emt 0:00:00]} 57. Be4+ {[%emt 0:00:14]} f5 {[%emt 0:00:00]} 58. Bxf5+ {[%emt 0:00:11]} Kh6 {[%emt 0:00:00]} 59. Rh8+ {[%emt 0:00:18]} 1-0

[Event "45th FIDE Womens Olympiad 2024"]
[Site "Budapest"]
[Date "2024.09.13"]
[Round "3.27"]
[White "Balajayeva, Khanim"]
[Black "Borda Rodas, Anapaola S."]
[Result "1/2-1/2"]
[ECO "C60"]
[WhiteElo "2384"]
[BlackElo "2216"]
[Annotator "RC"]
[PlyCount "104"]
[EventDate "2024.09.05"]
[EventType "team-tourn"]
[EventCountry "HUN"]
[SourceTitle "playchess.com"]
[Source "ChessBase"]
[SourceQuality "1"]
[WhiteTeam "Azerbaijan"]
[BlackTeam "Argentina"]
[WhiteTeamCountry "AZE"]
[BlackTeamCountry "ARG"]
[TimeControl "40/5400+30:1800+30"]

1. e4 {[%emt 0:00:03]} e5 {[%emt 0:00:13]} 2. Nf3 {[%emt 0:00:07]} Nc6 {[%emt 0:00:08]} 3. Bb5 {[%emt 0:00:07]} g6 {[%emt 0:00:56]} 4. c3 {[%emt 0:01:23]} a6 {[%emt 0:00:35]} 5. Bxc6 {[%emt 0:04:55]} dxc6 {[%emt 0:01:02]} 6. Nxe5 {[%emt 0:03:30]} Qg5 {[%emt 0:01:38]} 7. d4 {[%emt 0:12:46]} Qxg2 {[%emt 0:02:53]} 8. Qf3 {[%emt 0:00:07]} Qxf3 {[%emt 0:00:42]} 9. Nxf3 {[%emt 0:00:03]} Nf6 {[%emt 0:00:32]} 10. Nbd2 {[%emt 0:02:58]} Bd7 {[%emt 0:08:53]} 11. O-O {[%emt 0:06:00]} O-O-O {[%emt 0:01:28]} 12. Re1 {[%emt 0:00:44]} h6 {[%emt 0:04:52]} 13. Nf1 {[%emt 0:02:58]} Nh5 {[%emt 0:13:10]} 14. Ng3 {[%emt 0:04:54]} Nxg3 {[%emt 0:01:02]} 15. hxg3 {[%emt 0:00:16]} Bg7 {[%emt 0:00:16]} 16. Be3 {[%emt 0:07:01]} Rde8 {[%emt 0:02:00]} 17. Nd2 {[%emt 0:03:09]} h5 {[%emt 0:15:47]} 18. Kg2 {[%emt 0:00:46]} h4 {[%emt 0:03:42]} 19. gxh4 {[%emt 0:01:14]} Rxh4 {[%emt 0:00:14]} 20. Rh1 {[%emt 0:05:43]} Rg4+ {[%emt 0:07:07]} 21. Kf1 {[%emt 0:01:24]} Rh8 {[%emt 0:09:24]} 22. Rxh8+ {[%emt 0:01:42]} Bxh8 {[%emt 0:00:07]} 23. f3 {[%emt 0:00:09]} Rh4 {[%emt 0:02:16]} 24. Kg2 {[%emt 0:00:10]} Be6 {[%emt 0:04:14]} 25. a3 {[%emt 0:00:25]} Bf6 {[%emt 0:00:19]} 26. Rh1 {[%emt 0:03:45]} Rxh1 {[%emt 0:01:06]} 27. Kxh1 {[%emt 0:00:01]} a5 {[%emt 0:01:03]} 28. Kg2 {[%emt 0:01:01]} Be7 {[%emt 0:02:55]} 29. Kg3 {[%emt 0:02:18]} b6 {[%emt 0:04:21]} 30. Kf2 {[%emt 0:01:47]} Bh4+ {[%emt 0:00:42]} 31. Ke2 {[%emt 0:01:01]} Be7 {[%emt 0:04:39]} 32. Kd3 {[%emt 0:02:14]} g5 {[%emt 0:00:37]} 33. Nf1 {[%emt 0:01:19]} f5 {[%emt 0:01:20]} 34. exf5 {[%emt 0:00:54]} Bxf5+ {[%emt 0:00:06]} 35. Ke2 {[%emt 0:00:09]} g4 {[%emt 0:01:34]} 36. fxg4 {[%emt 0:00:44]} Bxg4+ {[%emt 0:00:06]} 37. Kd2 {[%emt 0:00:32]} Bd6 {[%emt 0:01:00]} 38. Bf2 {[%emt 0:00:45]} Bf4+ {[%emt 0:00:29]} 39. Be3 {[%emt 0:00:12]} Bd6 {[%emt 0:00:21]} 40. Bf2 {[%emt 0:00:06]} Be6 {[%emt 0:00:39]} 41. Bg3 {[%emt 0:30:24]} Be7 {[%emt 0:30:21]} 42. Bf2 {[%emt 0:01:01]} Bh3 {[%emt 0:01:28]} 43. Ng3 {[%emt 0:00:24]} Bg5+ {[%emt 0:00:50]} 44. Be3 {[%emt 0:00:27]} Be7 {[%emt 0:00:29]} 45. Ne2 {[%emt 0:00:45]} Bf5 {[%emt 0:01:20]} 46. Nf4 {[%emt 0:01:05]} Bf6 {[%emt 0:00:36]} 47. Nd3 {[%emt 0:00:12]} Kd7 {[%emt 0:01:35]} 48. Bf4 {[%emt 0:00:08]} Be4 {[%emt 0:01:42]} 49. Ne5+ {[%emt 0:00:24]} Kc8 {[%emt 0:00:00]} 50. Nd3 {[%emt 0:00:00]} Kd7 {[%emt 0:00:00]} 51. Ne5+ {[%emt 0:00:00]} Kc8 {[%emt 0:00:00]} 52. Nd3 {[%emt 0:00:00]} Kd7 {[%emt 0:00:00]} 1/2-1/2

[Event "45th FIDE Womens Olympiad 2024"]
[Site "Budapest"]
[Date "2024.09.13"]
[Round "3.28"]
[White "Amura, Claudia"]
[Black "Mammadova, Gulnar"]
[Result "0-1"]
[ECO "A50"]
[WhiteElo "2191"]
[BlackElo "2336"]
[Annotator "RC"]
[PlyCount "74"]
[EventDate "2024.09.05"]
[EventType "team-tourn"]
[EventCountry "HUN"]
[SourceTitle "playchess.com"]
[Source "ChessBase"]
[SourceQuality "1"]
[WhiteTeam "Argentina"]
[BlackTeam "Azerbaijan"]
[WhiteTeamCountry "ARG"]
[BlackTeamCountry "AZE"]
[TimeControl "40/5400+30:1800+30"]

1. d4 {[%emt 0:00:04]} Nf6 {[%emt 0:00:10]} 2. c4 {[%emt 0:00:34]} e6 {[%emt 0:00:10]} 3. Bf4 {[%emt 0:00:18]} d5 {[%emt 0:01:07]} 4. cxd5 {[%emt 0:01:17]} Nxd5 {[%emt 0:02:35]} 5. Bg3 {[%emt 0:01:44]} c5 {[%emt 0:04:06]} 6. e4 {[%emt 0:00:24]} Nf6 {[%emt 0:05:43]} 7. Nd2 {[%emt 0:02:31]} Nc6 {[%emt 0:07:15]} 8. e5 {[%emt 0:06:42]} Nd7 {[%emt 0:06:04]} 9. Ngf3 {[%emt 0:02:47]} cxd4 {[%emt 0:02:05]} 10. a3 {[%emt 0:13:23]} Be7 {[%emt 0:04:52]} 11. Rc1 {[%emt 0:01:50]} O-O {[%emt 0:03:26]} 12. Bd3 {[%emt 0:02:44]} f5 {[%emt 0:05:28]} 13. h4 {[%emt 0:11:41]} Nc5 {[%emt 0:06:16]} 14. Bb1 {[%emt 0:01:24]} a5 {[%emt 0:02:37]} 15. Bf4 {[%emt 0:04:11]} b5 {[%emt 0:05:47]} 16. g4 {[%emt 0:07:50]} Qd5 {[%emt 0:03:05]} 17. gxf5 {[%emt 0:03:05]} exf5 {[%emt 0:01:36]} 18. Rh3 {[%emt 0:01:39]} Ne6 {[%emt 0:02:53]} 19. Bh2 {[%emt 0:00:36]} a4 {[%emt 0:02:07]} 20. Nf1 {[%emt 0:07:45]} Nc5 {[%emt 0:05:47]} 21. Bf4 {[%emt 0:03:21]} Be6 {[%emt 0:02:28]} 22. Qe2 {[%emt 0:05:51]} b4 {[%emt 0:03:41]} 23. Ng5 {[%emt 0:00:34]} h6 {[%emt 0:04:29]} 24. Nxe6 {[%emt 0:07:19]} Nxe6 {[%emt 0:00:18]} 25. Bh2 {[%emt 0:00:05]} Rac8 {[%emt 0:03:00]} 26. Rd1 {[%emt 0:00:47]} f4 {[%emt 0:00:48]} 27. Qd3 {[%emt 0:01:14]} Qxe5+ {[%emt 0:02:42]} 28. Re3 {[%emt 0:00:06]} Qf6 {[%emt 0:01:43]} 29. Qh7+ {[%emt 0:01:29]} Kf7 {[%emt 0:00:04]} 30. h5 {[%emt 0:00:31]} Bd6 {[%emt 0:01:19]} 31. Qg6+ {[%emt 0:02:09]} Qxg6 {[%emt 0:01:14]} 32. Bxg6+ {[%emt 0:02:16]} Ke7 {[%emt 0:00:31]} 33. Rh3 {[%emt 0:04:26]} Ng5 {[%emt 0:00:48]} 34. Rhd3 {[%emt 0:00:38]} Ne5 {[%emt 0:00:18]} 35. Rxd4 {[%emt 0:00:30]} Ngf3+ {[%emt 0:02:02]} 36. Ke2 {[%emt 0:00:04]} Nxd4+ {[%emt 0:00:03]} 37. Rxd4 {[%emt 0:00:03]} Nxg6 {[%emt 0:00:08]} 0-1

[Event "45th FIDE Womens Olympiad 2024"]
[Site "Budapest"]
[Date "2024.09.13"]
[Round "3.29"]
[White "Ouellet, Maili-Jade"]
[Black "Tokhirjonova, Gulrukhbegim"]
[Result "1/2-1/2"]
[ECO "E48"]
[WhiteElo "2318"]
[BlackElo "2380"]
[Annotator "RC"]
[PlyCount "81"]
[EventDate "2024.09.05"]
[EventType "team-tourn"]
[EventCountry "HUN"]
[SourceTitle "playchess.com"]
[Source "ChessBase"]
[SourceQuality "1"]
[WhiteTeam "Canada"]
[BlackTeam "United States of America"]
[WhiteTeamCountry "CAN"]
[BlackTeamCountry "USA"]
[TimeControl "40/5400+30:1800+30"]

1. d4 {[%emt 0:00:02]} Nf6 {[%emt 0:00:14]} 2. c4 {[%emt 0:00:05]} e6 {[%emt 0:00:18]} 3. Nc3 {[%emt 0:00:09]} Bb4 {[%emt 0:00:09]} 4. e3 {[%emt 0:00:15]} O-O {[%emt 0:01:04]} 5. Bd3 {[%emt 0:00:23]} d5 {[%emt 0:00:47]} 6. Nge2 {[%emt 0:00:33]} b6 {[%emt 0:02:15]} 7. a3 {[%emt 0:02:01]} Bd6 {[%emt 0:01:55]} 8. e4 {[%emt 0:04:44]} dxe4 {[%emt 0:05:51]} 9. Nxe4 {[%emt 0:00:05]} Bb7 {[%emt 0:00:50]} 10. Nxd6 {[%emt 0:04:06]} cxd6 {[%emt 0:00:27]} 11. O-O {[%emt 0:00:51]} d5 {[%emt 0:00:42]} 12. Bg5 {[%emt 0:01:56]} dxc4 {[%emt 0:04:16]} 13. Bxc4 {[%emt 0:00:34]} b5 {[%emt 0:01:13]} 14. Ba2 {[%emt 0:02:02]} Nbd7 {[%emt 0:01:16]} 15. Nc3 {[%emt 0:09:31]} h6 {[%emt 0:10:27]} 16. Be3 {[%emt 0:03:12]} a6 {[%emt 0:17:33]} 17. d5 {[%emt 0:04:30]} exd5 {[%emt 0:05:48]} 18. Nxd5 {[%emt 0:03:05]} Nxd5 {[%emt 0:05:38]} 19. Bxd5 {[%emt 0:00:11]} Bxd5 {[%emt 0:00:09]} 20. Qxd5 {[%emt 0:00:04]} Nf6 {[%emt 0:00:21]} 21. Qc6 {[%emt 0:04:33]} Qd5 {[%emt 0:04:07]} 22. Rac1 {[%emt 0:02:23]} Qe5 {[%emt 0:01:03]} 23. Qc3 {[%emt 0:03:46]} Qxc3 {[%emt 0:06:43]} 24. Rxc3 {[%emt 0:00:05]} Nd5 {[%emt 0:00:22]} 25. Rd3 {[%emt 0:02:39]} Nxe3 {[%emt 0:00:10]} 26. Rxe3 {[%emt 0:02:10]} Rac8 {[%emt 0:00:14]} 27. Rfe1 {[%emt 0:00:32]} Rc2 {[%emt 0:02:48]} 28. R3e2 {[%emt 0:00:23]} Rfc8 {[%emt 0:00:19]} 29. g3 {[%emt 0:00:26]} a5 {[%emt 0:00:43]} 30. Kf1 {[%emt 0:00:47]} g5 {[%emt 0:06:54]} 31. Rxc2 {[%emt 0:06:35]} Rxc2 {[%emt 0:01:35]} 32. Re2 {[%emt 0:00:05]} Rc5 {[%emt 0:00:13]} 33. Ke1 {[%emt 0:04:03]} Kg7 {[%emt 0:02:42]} 34. Kd2 {[%emt 0:00:46]} Kf6 {[%emt 0:00:37]} 35. Kd3 {[%emt 0:02:05]} Kf5 {[%emt 0:00:56]} 36. Re4 {[%emt 0:05:22]} h5 {[%emt 0:03:46]} 37. h3 {[%emt 0:04:27]} Kg6 {[%emt 0:07:00]} 38. b4 {[%emt 0:10:55]} axb4 {[%emt 0:01:01]} 39. axb4 {[%emt 0:01:39]} Rf5 {[%emt 0:01:27]} 40. Ke3 {[%emt 0:01:12]} Rd5 {[%emt 0:00:34]} 41. Rd4 {[%emt 0:36:12]} 1/2-1/2